bitfinex-derivatives/quotes_ETHF0:USTF0_20250110
["timestamp","ask_amount","ask_price","bid_price","bid_amount"]
[1736522955733,3.2078,3232.7,3231.9,3.40618904]
[1736522955936,0.30944,3232.5,3231.9,3.40618904]
[1736522956241,3.2078,3232.3,3231.9,3.40618904]
[1736522956535,0.30946,3232.3,3231.9,3.40618904]
[1736522956934,3.2078,3232.7,3231.9,3.40618904]
[1736522957430,0.30944,3232.5,3231.9,3.40618904]
[1736522957642,0.30943,3232.6,3232.1,3.2078]
[1736522957836,0.30945,3232.3,3232.1,3.2078]
[1736522958235,5.1268,3232.8,3232.1,3.2078]
[1736522958437,0.30945,3232.3,3231.9,3.40618904]
[1736522958636,3.2078,3232.4,3231.9,3.40618904]
[1736522958837,0.30948,3232.0,3231.9,3.40618904]
[1736522959231,3.51725,3232.4,3231.9,47.41398904]
[1736522959433,1.919,3232.8,3231.9,47.41398904]
[1736522959743,0.30943,3232.5,3232.0,0.30948]
[1736522960040,0.30943,3232.6,3232.0,0.30947]
[1736522960236,1.919,3232.8,3231.9,47.41398904]
[1736522960538,1.919,3232.8,3232.4,3.2078]
[1736522960737,0.30943,3232.6,3232.4,3.2078]
[1736522961131,1.919,3232.8,3232.4,6.61398904]
[1736522961440,0.30942,3232.6,3232.4,6.61398904]
[1736522961639,0.30943,3232.5,3232.4,3.2078]
[1736522962242,0.30946,3232.3,3231.9,3.40618904]
[1736522962443,3.2078,3232.5,3231.9,3.40618904]
[1736522962444,0.30944,3232.4,3231.9,3.40618904]
[1736522962736,2.77591083,3232.5,3231.4,3.40618904]
[1736522962935,0.3095,3231.9,3231.4,3.71571904]
[1736522963141,3.54951083,3232.5,3231.5,3.51732]
[1736522963142,0.30944,3232.4,3231.5,3.51732]
[1736522963339,2.77591083,3232.5,3231.5,3.2078]
[1736522964244,0.30947,3232.2,3231.7,0.3095]
[1736522964544,2.77591083,3232.5,3231.5,3.2078]
[1736522964743,2.77591083,3232.5,3231.9,0.30948]
[1736522964744,0.30945,3232.4,3231.9,0.30948]
[1736522965136,2.77591083,3232.5,3231.9,0.30948]
[1736522965342,3.2078,3232.9,3231.9,3.2078]
[1736522965543,3.2078,3232.9,3231.9,6.61398904]
[1736522965740,0.30944,3232.5,3232.0,0.30947]
[1736522965937,3.2078,3232.9,3232.3,3.2078]
[1736522966742,0.30943,3232.6,3232.3,3.2078]
[1736522966945,3.2078,3232.9,3232.3,3.2078]
[1736522967247,0.30941,3232.8,3232.4,0.30944]
[1736522967547,0.30941,3232.8,3232.4,0.30943]
[1736522967947,2.0214,3233.3,3232.3,3.2078]
[1736522968137,3.2078,3232.9,3232.3,3.2078]
[1736522968445,0.30941,3232.7,3232.3,3.51724]
[1736522968642,5.2292,3233.3,3232.4,40.8]
[1736522968847,5.2292,3233.3,3232.3,3.2078]
[1736522968848,2.0214,3233.3,3232.3,3.2078]
[1736522969038,2.0214,3233.3,3232.4,3.40618904]
[1736522969438,2.0214,3233.3,3232.3,3.2078]
[1736522969948,3.2078,3233.0,3232.3,3.2078]
[1736522970246,0.30944,3232.4,3232.3,3.2078]
[1736522970845,3.2078,3232.6,3232.1,1.776]
[1736522971147,0.77349,3233.0,3232.1,1.776]
[1736522971341,3.2078,3232.6,3231.9,40.8]
[1736522971548,3.98137,3232.6,3231.9,40.8]
[1736522971751,0.30947,3232.2,3231.9,40.8]
[1736522971945,0.30944,3232.5,3231.9,40.8]
[1736522972350,0.30944,3232.5,3232.0,0.30948]
[1736522972547,3.98127,3233.0,3231.9,40.8]
[1736522972743,0.30943,3232.6,3232.2,0.30945]
[1736522972945,3.2078,3233.0,3231.9,40.8]
[1736522973348,2.0214,3233.3,3232.3,0.30945]
[1736522973349,0.30941,3232.8,3232.3,0.30945]
[1736522973552,2.7948,3233.3,3232.5,0.30943]
[1736522973756,0.3094,3232.9,3232.5,0.30943]
[1736522974059,0.30941,3232.8,3232.5,0.30943]
[1736522974254,2.0214,3233.3,3232.2,3.2078]
[1736522974569,0.77342,3233.2,3232.2,3.2078]
[1736522974851,3.2078,3233.0,3232.2,3.2078]
[1736522975048,0.77351,3232.9,3232.2,3.2078]
[1736522975251,0.30944,3232.4,3232.2,3.2078]
[1736522975448,3.2078,3232.6,3231.9,40.8]
[1736522975648,3.98138,3232.6,3231.9,40.8]
[1736522975856,0.30946,3232.2,3231.9,41.10948]
[1736522976051,3.2078,3232.6,3231.9,40.8]
[1736522976453,0.30943,3232.5,3231.9,40.8]
[1736522976655,3.51723,3232.6,3232.3,0.30945]
[1736522976858,0.30943,3232.5,3232.2,0.30946]
[1736522977055,0.30944,3232.5,3232.2,0.30946]
[1736522977353,0.77351,3232.9,3231.9,40.8]
[1736522977549,0.30947,3232.2,3231.9,40.8]
[1736522977747,0.77361,3232.4,3231.3,5.45156439]
[1736522977951,3.2078,3232.5,3231.3,5.45156439]
[1736522978147,0.30947,3232.2,3231.8,0.30949]
[1736522978354,0.30944,3232.4,3232.1,0.30947]
[1736522978651,0.77356,3232.6,3231.7,3.2078]
[1736522978858,0.00114532,3232.7,3231.7,3.2078]
[1736522979057,0.30945,3232.3,3232.0,0.30947]
[1736522979258,3.2078,3232.6,3231.7,3.2078]
[1736522979453,0.00114532,3232.7,3231.7,3.2078]
[1736522979454,3.2078,3232.5,3231.8,0.30949]
[1736522979654,3.2078,3232.5,3231.7,3.2078]
[1736522979851,0.30945,3232.4,3231.7,3.4539816]
[1736522980053,0.00114532,3232.7,3232.1,0.30946]
[1736522980258,0.00114532,3232.7,3231.7,3.2078]
[1736522980452,0.30947,3232.2,3231.7,3.2078]
[1736522980653,0.30945,3232.3,3232.1,0.30947]
[1736522980849,0.00114532,3232.7,3232.1,3.2078]
[1736522981054,0.30943,3232.6,3232.4,0.30944]
[1736522981358,0.30943,3232.5,3232.3,0.30944]
[1736522981562,0.30943,3232.6,3232.3,0.30944]
[1736522981965,0.30943,3232.5,3232.3,0.30944]
[1736522982157,0.00114532,3232.7,3232.3,0.30944]
[1736522982461,0.30943,3232.5,3232.2,0.30945]
[1736522982661,0.30943,3232.6,3232.3,0.30945]
[1736522983060,0.30944,3232.5,3232.2,0.30945]
[1736522983564,0.30944,3232.5,3232.3,0.30945]
[1736522983764,0.30943,3232.6,3232.3,0.30945]
[1736522983964,0.00114532,3232.7,3232.3,0.30945]
[1736522984164,0.00114532,3232.7,3232.1,3.2078]
[1736522984360,0.00114532,3232.7,3231.3,5.2038]
[1736522984361,3.2078,3232.2,3231.3,5.2038]
[1736522984665,0.30948,3232.0,3231.7,0.3095]
[1736522985162,3.2078,3232.2,3231.4,40.8]
[1736522985364,0.30951,3231.7,3231.4,41.10953]
[1736522985559,3.2078,3232.2,3231.4,40.8]
[1736522985764,3.2078,3231.8,3231.3,3.2078]
[1736522986164,3.2078,3231.8,3231.3,0.30954]
[1736522986460,3.2078,3231.8,3231.4,41.10953]
[1736522986666,0.30951,3231.7,3231.4,41.10953]
[1736522986965,0.30951,3231.7,3231.5,0.30952]
[1736522987259,0.30949,3231.9,3231.6,3.2078]
[1736522987463,0.3095,3231.9,3231.6,3.2078]
[1736522987662,2.7608,3232.5,3231.7,0.30951]
[1736522987865,0.30951,3231.7,3231.6,3.2078]
[1736522988164,0.30951,3231.7,3231.5,0.30953]
[1736522988367,3.2078,3232.0,3231.4,40.8]
[1736522988556,0.30946,3232.3,3232.0,0.30947]
[1736522988760,1.9009,3232.6,3232.0,3.2078]
[1736522988962,0.30944,3232.5,3232.3,0.30945]
[1736522989372,0.30943,3232.6,3232.3,0.30945]
[1736522989664,3.2078,3232.8,3232.0,3.2078]
[1736522989870,0.30947,3232.1,3232.0,3.2078]
[1736522990160,0.30946,3232.3,3232.0,3.2078]
[1736522990467,3.98133,3232.8,3232.0,3.2078]
[1736522990468,3.2078,3232.8,3232.0,3.2078]
[1736522990767,3.2078,3232.8,3232.2,0.30945]
[1736522991167,0.30945,3232.3,3232.1,0.30946]
[1736522991365,3.98133,3232.8,3232.0,3.2078]
[1736522991561,3.2078,3232.8,3231.4,44.25936896]
[1736522991761,3.2078,3232.1,3231.5,0.30952]
[1736522991969,0.30951,3231.8,3231.4,44.0078]
[1736522992274,0.77363,3232.3,3231.4,44.0078]
[1736522992658,0.30949,3231.9,3231.4,44.0078]
[1736522992965,3.2078,3232.1,3231.4,44.0078]
[1736522993567,3.2078,3232.1,3231.4,3.2078]
[1736522993568,0.30953,3231.5,3231.4,3.2078]
[1736522993770,3.2078,3231.7,3230.9,4.85029253]
[1736522993965,0.30957,3231.0,3230.9,4.85029253]
[1736522994170,2.6921,3231.6,3230.9,45.65029253]
[1736522994365,1.9183,3231.6,3230.9,45.65029253]
[1736522994566,0.30953,3231.5,3230.9,40.8]
[1736522994769,0.30948,3232.0,3231.6,0.30951]
[1736522994971,3.2078,3232.1,3231.4,0.30953]
[1736522995166,0.30948,3232.0,3231.4,0.30953]
[1736522995372,0.30952,3231.7,3231.5,0.30953]
[1736522995774,3.2078,3232.1,3231.2,3.2078]
[1736522995969,3.9815,3232.1,3231.2,3.2078]
[1736522996278,0.3095,3231.8,3231.2,3.2078]
[1736522996472,0.3095,3231.8,3231.5,0.30952]
[1736522996979,0.3095,3231.8,3231.2,3.2078]
[1736522997180,0.3095,3231.8,3231.6,3.2078]
[1736522997380,1.9183,3232.2,3231.6,3.2078]
[1736522997590,0.30949,3231.9,3231.6,3.2078]
[1736522997778,0.30949,3231.9,3231.6,3.51731]
[1736522997976,0.30947,3232.1,3231.2,3.2078]
[1736522998277,5.1261,3232.2,3231.2,3.2078]
[1736522998479,0.30951,3231.7,3231.2,3.2078]
[1736522998679,0.30952,3231.6,3231.4,0.30954]
[1736522998884,0.30949,3231.9,3231.3,0.30954]
[1736522999185,0.30949,3231.9,3231.7,0.3095]
[1736522999383,1.9183,3232.2,3231.6,3.2078]
[1736522999588,2.65741,3232.4,3231.6,3.2078]
[1736522999589,1.8838,3232.4,3231.6,3.2078]
[1736522999788,1.8838,3232.4,3231.8,0.3095]
[1736522999789,0.30948,3232.0,3231.8,0.3095]
[1736523000086,0.30947,3232.1,3231.9,41.10949]
[1736523000283,0.30948,3232.0,3231.9,40.8]
[1736523000679,2.94280109,3232.2,3231.1,0.30956]
[1736523000879,3.98155,3231.8,3230.9,4.85029253]
[1736523001089,0.30954,3231.4,3231.0,40.8]
[1736523001281,3.2078,3231.8,3231.0,40.8]
[1736523001481,0.30956,3231.2,3231.0,40.8]
[1736523001782,0.7738,3231.6,3230.8,3.2078]
[1736523001983,6.15060109,3231.4,3230.2,4.85029253]
[1736523002183,3.98174,3231.1,3230.2,4.85029253]
[1736523002387,0.30964,3230.3,3230.2,4.85029253]
[1736523002791,0.30964,3230.3,3230.2,5.15994253]
[1736523002792,3.2078,3230.3,3230.2,5.15994253]
[1736523003085,5.9521,3230.5,3229.7,3.2078]
[1736523003286,0.30968,3229.9,3229.7,3.5175]
[1736523003488,3.2078,3230.3,3229.5,4.85029253]
[1736523003690,3.98192,3230.3,3229.5,5.16000253]
[1736523003891,0.77414,3230.2,3229.5,4.85029253]
[1736523004192,3.2078,3230.3,3229.3,3.2078]
[1736523004391,0.30968,3229.9,3229.6,0.3097]
[1736523004889,3.2078,3230.3,3229.3,3.2078]
[1736523005089,3.2078,3230.3,3229.3,3.51753]
[1736523005090,0.30972,3229.6,3229.3,3.51753]
[1736523005286,0.30972,3229.5,3229.3,3.51753]
[1736523005599,3.2078,3229.6,3228.8,12.7446138]
[1736523005782,3.40431848,3230.4,3228.8,12.7446138]
[1736523005783,3.2078,3230.2,3228.8,12.7446138]
[1736523005989,3.2078,3230.3,3229.2,3.2078]
[1736523006296,3.2078,3230.3,3229.6,3.2078]
[1736523006486,3.2078,3230.3,3229.8,0.30968]
[1736523006792,0.30967,3230.1,3229.8,0.30968]
[1736523006994,3.2078,3230.3,3229.6,3.2078]
[1736523007197,0.30967,3230.1,3229.7,0.30969]
[1736523007497,0.30966,3230.2,3229.8,0.30969]
[1736523007693,5.9521,3230.5,3229.7,0.30969]
[1736523007993,5.9521,3230.5,3229.6,3.2078]
[1736523008193,0.30967,3230.0,3229.9,40.8]
[1736523008786,0.30967,3230.0,3229.6,3.2078]
[1736523008787,3.2078,3230.3,3229.6,3.2078]
[1736523008985,0.3097,3229.7,3228.9,5.2744]
[1736523009186,5.9521,3230.5,3229.6,0.3097]
[1736523009388,0.77416,3230.1,3229.1,0.30975]
[1736523009587,0.30971,3229.6,3229.3,0.30973]
[1736523009790,0.77416,3230.1,3229.3,0.30973]
[1736523009983,0.30972,3229.5,3229.4,40.8]
[1736523010196,3.2078,3230.2,3229.4,40.8]
[1736523010393,5.9521,3230.5,3229.7,3.2078]
[1736523010884,5.9521,3230.5,3229.4,40.8]
[1736523011090,0.30965,3230.2,3229.9,0.30968]
[1736523011286,5.9521,3230.5,3229.4,40.8]
[1736523011488,5.9521,3230.5,3229.6,3.2078]
[1736523011689,0.30965,3230.3,3229.6,3.2078]
[1736523011993,5.9521,3230.5,3229.6,3.2078]
[1736523012289,0.3097,3229.7,3229.4,40.8]
[1736523012494,5.9521,3230.5,3229.4,44.0078]
[1736523013091,0.30971,3229.6,3229.4,3.2078]
[1736523013398,0.30972,3229.5,3229.4,3.2078]
[1736523013794,0.77421,3229.9,3229.1,40.8]
[1736523013988,0.30977,3229.0,3228.9,2.0666]
[1736523014189,0.30977,3229.0,3228.8,0.30978]
[1736523014190,0.30978,3228.9,3228.7,3.2078]
[1736523014386,3.2078,3229.3,3228.7,3.2078]
[1736523014887,5.9197,3229.5,3228.7,3.2078]
[1736523015093,0.30974,3229.3,3229.0,0.30976]
[1736523015299,5.9197,3229.5,3228.7,3.2078]
[1736523015588,3.2078,3230.2,3229.2,3.2078]
[1736523015793,0.30967,3230.1,3229.9,0.30968]
[1736523015998,3.2078,3230.1,3229.8,0.30968]
[1736523016194,3.2078,3230.1,3229.5,0.30971]
[1736523016495,3.2078,3229.7,3228.8,3.2078]
[1736523016689,0.30971,3229.6,3229.1,0.30975]
[1736523016893,5.1636,3229.7,3229.1,0.30975]
[1736523017102,5.1636,3229.7,3228.8,3.2078]
[1736523017294,0.30976,3229.1,3228.7,0.25318616]
[1736523017595,5.1636,3229.7,3228.7,0.25318616]
[1736523017596,0.30979,3228.8,3228.7,41.10979]
[1736523017997,0.30979,3228.8,3228.7,40.8]
[1736523018498,3.2078,3229.3,3228.4,3.2078]
[1736523018695,3.2078,3229.3,3228.7,0.30979]
[1736523018888,3.2078,3229.3,3228.4,44.0078]
[1736523019499,0.77438,3229.2,3228.7,0.30979]
[1736523019700,0.30979,3228.8,3228.4,44.0078]
[1736523019897,0.30979,3228.8,3228.7,0.3098]
[1736523020192,2.034,3229.4,3228.5,0.77454]
[1736523020391,0.30981,3228.6,3228.5,0.30981]
[1736523020600,0.77438,3229.2,3228.4,44.0078]
[1736523020989,3.2078,3229.3,3228.4,44.0078]
[1736523020990,3.2078,3228.9,3228.5,0.30981]
[1736523021194,0.30981,3228.6,3228.4,41.10982]
[1736523021389,0.30981,3228.5,3228.4,40.8]
[1736523021590,2.0637,3228.8,3228.2,0.30984]
[1736523021795,2.0637,3228.8,3228.1,0.30985]
[1736523021992,2.0637,3228.8,3227.5,4.45946]
[1736523021993,3.2078,3228.3,3227.9,0.30987]
[1736523022201,3.2078,3228.3,3227.5,1.9117]
[1736523022401,0.30991,3227.6,3227.4,3.2078]
[1736523022603,3.9102,3228.2,3227.4,3.2078]
[1736523022896,0.30989,3227.8,3227.6,0.3099]
[1736523023094,3.9102,3228.2,3227.4,3.2078]
[1736523023295,0.30985,3228.2,3227.9,0.30987]
[1736523023495,3.2078,3228.3,3228.2,0.30984]
[1736523023700,3.2078,3228.3,3227.6,0.77476]
[1736523023701,3.2078,3228.3,3227.8,3.2078]
[1736523023999,3.2078,3228.3,3227.9,0.30987]
[1736523024201,3.2078,3228.3,3227.4,4.9808]
[1736523024502,3.2078,3227.8,3227.4,3.2078]
[1736523024798,0.30994,3227.2,3227.0,0.30995]
[1736523025099,5.9666,3227.7,3226.9,2.30261245]
[1736523025599,0.30993,3227.4,3227.1,0.30994]
[1736523025898,0.30993,3227.4,3226.5,0.77501]
[1736523025899,3.2078,3227.4,3226.3,3.2078]
[1736523026098,0.30998,3226.8,3226.5,0.31]
[1736523026402,3.72633971,3227.3,3226.3,3.2078]
[1736523026596,0.31001,3226.5,3226.3,3.2078]
[1736523026803,0.30999,3226.7,3226.4,0.31001]
[1736523027004,0.30997,3226.9,3226.6,0.30999]
[1736523027197,3.2078,3227.4,3226.3,3.2078]
[1736523027198,3.98263,3227.4,3226.3,3.2078]
[1736523027503,3.2078,3226.8,3226.3,3.2078]
[1736523028103,6.74135,3227.7,3226.3,3.2078]
[1736523028104,3.2078,3227.0,3226.3,3.2078]
[1736523028302,0.30998,3226.8,3226.4,0.31001]
[1736523028600,3.2078,3227.0,3226.1,1.9476]
[1736523028800,3.2078,3227.0,3226.3,0.31002]
[1736523029004,0.31,3226.6,3226.1,1.9476]
[1736523029193,2.0611,3226.9,3226.1,1.9476]
[1736523029393,0.31001,3226.5,3226.2,0.31003]
[1736523029590,0.31005,3226.1,3225.9,3.2078]
[1736523029800,3.2078,3226.6,3225.9,3.2078]
[1736523030001,0.31001,3226.5,3226.1,0.31004]
[1736523030198,3.8667,3226.8,3226.3,3.2078]
[1736523030393,2.0611,3226.9,3226.3,3.2078]
[1736523030594,0.30999,3226.7,3226.1,0.31004]
[1736523030796,2.95150971,3226.6,3225.8,3.2078]
[1736523031198,3.2078,3226.4,3225.6,1.995]
[1736523031396,3.51782,3226.4,3226.1,0.31004]
[1736523031599,0.31003,3226.3,3225.6,2.24314736]
[1736523031798,0.31003,3226.3,3226.0,0.31005]
[1736523032298,3.2078,3226.4,3225.6,2.24314736]
[1736523032603,2.0611,3226.9,3226.0,3.2078]
[1736523032802,0.30999,3226.7,3226.0,3.2078]
[1736523033003,0.30999,3226.7,3226.5,40.8]
[1736523033298,0.31,3226.6,3226.5,40.8]
[1736523034002,5.2689,3226.9,3226.5,40.8]
[1736523034304,1.9556,3227.2,3226.5,40.8]
[1736523034600,0.31,3226.6,3226.5,40.8]
[1736523034997,0.31006,3225.9,3225.5,0.3101]
[1736523035207,2.95150971,3226.1,3225.4,3.2078]
[1736523035402,0.31008,3225.8,3225.5,0.3101]
[1736523035703,0.31008,3225.7,3225.5,0.3101]
[1736523035906,2.33266,3226.0,3225.5,0.3101]
[1736523036202,0.31006,3226.0,3225.5,0.3101]
[1736523036408,0.3101,3225.5,3225.4,40.8]
[1736523036811,3.2078,3225.9,3225.5,0.3101]
[1736523037010,4.01,3226.2,3225.4,44.0078]
[1736523037208,2.0438,3226.8,3225.8,6.15930971]
[1736523037706,2.0438,3226.8,3225.9,0.31006]
[1736523037908,0.31003,3226.3,3225.9,0.31006]
[1736523038105,2.0438,3226.8,3225.8,3.2078]
[1736523038306,1.9225,3227.1,3225.4,42.57]
[1736523038307,1.9225,3227.1,3226.2,3.2078]
[1736523038506,0.30999,3226.7,3226.4,0.31001]
[1736523038704,0.31001,3226.5,3226.3,1.9383]
[1736523039009,0.31002,3226.4,3226.3,1.9383]
[1736523039209,3.2078,3226.9,3225.8,6.15930971]
[1736523039412,0.31003,3226.3,3225.8,6.15930971]
[1736523039604,3.2078,3226.5,3225.8,6.46937971]
[1736523039800,0.31006,3225.9,3225.8,3.2078]
[1736523040802,2.95150971,3226.0,3224.9,3.2078]
[1736523041005,3.2078,3225.3,3224.9,3.2078]
[1736523041207,0.31015,3225.0,3224.9,3.2078]
[1736523041402,0.31019,3224.6,3224.5,40.8]
[1736523041609,0.3102,3224.5,3224.4,5.2409]
[1736523041809,0.31015,3225.1,3224.4,5.2409]
[1736523042016,0.31013,3225.2,3224.6,0.31018]
[1736523042312,3.2078,3225.3,3224.4,8.19240971]
[1736523042313,3.2078,3225.3,3224.5,40.8]
[1736523042513,0.31013,3225.2,3224.5,40.8]
[1736523042705,1.9062,3225.5,3224.5,40.8]
[1736523043010,0.31019,3224.6,3224.5,40.8]
[1736523043208,0.31016,3224.9,3224.6,0.31019]
[1736523043411,3.51793,3225.3,3225.0,0.31014]
[1736523043713,3.2078,3225.6,3224.8,3.2078]
[1736523043905,0.31016,3225.0,3224.8,3.2078]
[1736523044107,0.31014,3225.1,3224.8,3.51797]
[1736523044512,3.2078,3225.6,3224.8,3.2078]
[1736523044712,0.31016,3224.9,3224.8,3.2078]
[1736523045209,6.15930971,3225.2,3224.0,3.2078]
[1736523045716,0.31019,3224.7,3224.3,0.31021]
[1736523046111,0.31014,3225.1,3224.1,3.72709971]
[1736523046309,0.31016,3224.9,3224.6,0.31019]
[1736523046510,0.31016,3225.0,3224.6,0.31019]
[1736523046712,3.2078,3225.2,3224.4,3.2078]
[1736523046906,6.15930971,3225.2,3224.1,0.25327753]
[1736523047109,0.31022,3224.3,3224.0,44.0078]
[1736523047311,0.31022,3224.3,3224.0,44.31805]
[1736523047713,0.31022,3224.3,3224.0,44.0078]
[1736523047913,3.2078,3224.8,3224.0,44.0078]
[1736523048311,3.2078,3224.8,3224.4,3.2078]
[1736523048507,3.2078,3225.2,3224.4,3.2078]
[1736523048713,0.31012,3225.3,3224.9,0.31015]
[1736523048918,0.31012,3225.3,3225.0,0.31015]
[1736523049115,4.0391,3225.7,3224.8,3.2078]
[1736523049318,3.2078,3226.2,3225.2,3.2078]
[1736523049516,0.31008,3225.8,3225.4,0.31011]
[1736523049822,0.31006,3226.0,3225.7,0.31008]
[1736523050021,3.2078,3226.6,3225.7,2.95150971]
[1736523050223,0.31005,3226.2,3225.5,1.9803]
[1736523050411,0.31003,3226.3,3225.7,3.2078]
[1736523050614,3.72647971,3226.8,3225.7,3.2078]
[1736523050815,0.31006,3226.0,3225.7,0.31008]
[1736523051014,3.2078,3226.6,3225.7,3.2078]
[1736523051219,3.2078,3226.4,3225.8,40.8]
[1736523051623,9.2909,3227.1,3225.8,40.8]
[1736523051821,3.2078,3226.7,3225.8,40.8]
[1736523052318,0.77493,3226.9,3225.8,40.8]
[1736523052319,9.2909,3227.1,3225.8,40.8]
[1736523052529,9.2909,3227.1,3226.1,3.2078]
[1736523052823,0.30999,3226.7,3226.3,0.31002]
[1736523053017,0.30999,3226.7,3226.1,3.2078]
[1736523053220,9.2909,3227.1,3226.1,3.2078]
[1736523053621,0.31001,3226.6,3226.3,0.31002]
[1736523053823,0.31001,3226.6,3226.1,3.2078]
[1736523053824,0.31002,3226.4,3226.1,3.51784]
[1736523054016,0.7749,3227.0,3226.2,0.31003]
[1736523054318,0.31001,3226.6,3226.3,0.31002]
[1736523054515,9.2909,3227.1,3226.1,3.2078]
[1736523054913,0.31,3226.6,3226.1,3.2078]
[1736523055225,9.2909,3227.1,3226.1,3.2078]
[1736523055413,0.31001,3226.5,3226.3,0.31003]
[1736523055617,3.2078,3226.7,3225.6,4.9738]
[1736523055820,3.2078,3226.2,3225.6,3.2078]
[1736523056020,0.31008,3225.8,3225.6,3.51789]
[1736523056520,3.2078,3226.2,3225.2,3.2078]
[1736523056726,2.0848,3226.1,3225.2,3.2078]
[1736523056926,2.0848,3226.1,3225.7,0.31008]
[1736523056927,0.31007,3225.9,3225.7,0.31008]
[1736523057121,2.0848,3226.1,3225.6,0.31009]
[1736523057324,0.31008,3225.7,3225.2,3.2078]
[1736523057524,2.95150971,3226.0,3225.2,3.2078]
[1736523057726,2.95150971,3226.0,3224.8,3.2078]
[1736523057727,3.2078,3225.9,3224.8,3.2078]
[1736523057926,3.2078,3225.9,3224.9,40.8]
[1736523058422,3.2078,3225.9,3225.6,0.31009]
[1736523058821,3.2078,3225.9,3225.4,3.2078]
[1736523059122,3.2078,3225.9,3225.8,0.31007]
[1736523059829,1.8837,3226.3,3225.8,0.31007]
[1736523060131,3.2078,3226.5,3225.5,1.9875]
[1736523060326,0.31003,3226.3,3226.0,0.31005]
[1736523060831,3.2078,3226.5,3226.0,0.31005]
[1736523061131,1.904,3227.0,3225.8,3.2078]
[1736523061331,1.904,3227.0,3226.1,2.95150971]
[1736523061538,3.2078,3227.6,3226.9,3.2078]
[1736523061735,0.30994,3227.2,3226.9,0.30996]
[1736523062033,3.2078,3227.6,3226.6,3.9057]
[1736523062228,2.95150971,3227.8,3226.6,3.9057]
[1736523062430,0.30996,3227.0,3226.9,3.2078]
[1736523062639,0.30996,3227.0,3226.1,0.77511]
[1736523062640,3.2078,3227.3,3226.1,2.95150971]
[1736523062835,0.31002,3226.4,3226.1,0.31004]
[1736523063033,3.2078,3226.8,3226.0,1.9789]
[1736523063235,0.31003,3226.3,3226.1,0.31004]
[1736523063431,0.30997,3226.9,3226.6,0.30999]
[1736523063631,1.97,3227.0,3226.1,6.15930971]
[1736523063834,3.2078,3227.1,3226.1,6.15930971]
[1736523064033,3.2078,3226.9,3226.2,40.8]
[1736523064240,2.0657,3227.3,3226.2,40.8]
[1736523064241,2.0657,3227.3,3226.5,6.15930971]
[1736523064737,0.30995,3227.2,3226.5,6.15930971]
[1736523064930,0.30995,3227.2,3226.9,0.30996]
[1736523065129,0.30996,3227.0,3226.5,8.21200971]
[1736523065337,0.30995,3227.1,3226.8,0.30997]
[1736523065533,2.0657,3227.3,3227.0,0.30996]
[1736523065534,2.37564,3227.3,3227.0,0.30996]
[1736523065735,0.30994,3227.2,3226.9,0.30996]
[1736523066436,2.0657,3227.9,3227.0,3.2078]
[1736523066634,0.30991,3227.6,3227.3,0.30993]
[1736523066834,2.84039,3227.9,3227.1,2.0838]
[1736523067039,0.77471,3227.8,3227.1,2.0838]
[1736523067238,0.30994,3227.2,3227.1,2.0838]
[1736523067538,0.30994,3227.2,3226.9,0.30996]
[1736523067739,0.30995,3227.1,3226.8,0.30997]
[1736523068235,0.30995,3227.1,3226.9,0.30997]
[1736523068430,0.77477,3227.6,3226.6,5.1243]
[1736523068431,0.30997,3226.9,3226.6,5.43429]
[1736523068636,2.95150971,3227.8,3226.6,5.1243]
[1736523068637,3.2078,3227.3,3226.6,5.1243]
[1736523068842,3.2078,3226.9,3226.1,6.15930971]
[1736523069134,2.0821,3226.8,3225.8,1.9165]
[1736523069340,3.9756,3226.8,3225.8,45.66800971]
[1736523069735,0.77498,3226.7,3225.8,45.66800971]
[1736523069948,0.31003,3226.3,3226.0,0.31005]
[1736523070234,3.9756,3226.8,3226.0,0.31005]
[1736523070235,0.30992,3227.5,3226.4,0.77503]
[1736523070440,4.0508,3228.0,3227.2,3.2078]
[1736523070842,1.9667,3228.4,3227.5,2.95150971]
[1736523071039,1.9667,3228.4,3227.6,3.2078]
[1736523071346,10.20612617,3229.2,3228.0,3.2078]
[1736523071347,0.30979,3228.8,3228.0,3.2078]
[1736523071536,9.43172617,3229.2,3228.0,3.2078]
[1736523071537,0.30981,3228.6,3228.0,3.2078]
[1736523071736,3.2078,3229.1,3228.0,3.2078]
[1736523071936,0.30979,3228.8,3228.4,0.30982]
[1736523072139,3.2078,3229.1,3228.1,1.9829]
[1736523072346,0.30978,3228.9,3228.5,0.30981]
[1736523072539,3.2078,3229.1,3228.4,3.2078]
[1736523072746,0.30973,3229.4,3229.0,0.30976]
[1736523073135,3.982,3230.0,3229.0,0.30976]
[1736523073333,0.30968,3229.9,3229.2,0.30975]
[1736523073539,0.30969,3229.8,3229.4,0.30972]
[1736523073739,3.2078,3229.7,3228.9,2.0592]
[1736523073944,0.30974,3229.3,3229.0,0.30977]
[1736523074244,3.2078,3229.7,3228.9,2.36897]
[1736523074444,3.2078,3229.7,3228.9,2.0592]
[1736523074740,3.2078,3229.3,3228.6,3.2078]
[1736523074945,0.30975,3229.2,3228.8,0.30979]
[1736523075137,3.2078,3229.7,3228.6,3.2078]
[1736523075441,0.30969,3229.8,3229.0,3.2078]
[1736523075644,3.2078,3230.1,3229.0,3.2078]
[1736523075839,0.3097,3229.7,3229.3,0.30973]
[1736523076138,0.30968,3229.9,3229.4,0.30972]
[1736523076343,0.30968,3230.0,3229.5,0.30972]